[Event "46th GRE-chT Premier 2018"]
[Site "Rio Achaia"]
[Date "2018.07.11"]
[Round "3"]
[White "Pilalis, Ernestos"]
[Black "Koutlas, Nikolaos"]
[Result "0-1"]
[ECO "A04"]
[WhiteElo "1278"]
[BlackElo "1856"]
[Annotator "NA"]
[PlyCount "91"]
[EventDate "2018.07.10"]
[EventType "team-tourn"]
[EventCountry "GRE"]
[SourceTitle "playchess.com"]
[Source "ChessBase"]
[SourceQuality "1"]
[TimeControl "40/5400+30:1800+30"]

1. Nf3 {[%emt 0:00:00]} c5 {[%emt 0:00:00]} 2. e3 {[%emt 0:00:00]} Nc6 {[%emt 0:00:15]} 3. d4 {[%emt 0:00:01]} cxd4 {[%emt 0:00:18]} 4. exd4 {[%emt 0:00:08]} d5 {[%emt 0:00:13]} 5. Be2 {[%emt 0:00:42]} Bf5 {[%emt 0:00:29]} 6. O-O {[%emt 0:00:58]} e6 {[%emt 0:00:43]} 7. b3 {[%emt 0:00:47]} Bd6 {[%emt 0:04:34]} 8. Bb2 {[%emt 0:02:04]} h6 {[%emt 0:00:50]} 9. Nbd2 {[%emt 0:02:02]} Nf6 {[%emt 0:01:14]} 10. c4 {[%emt 0:00:58]} O-O {[%emt 0:02:14]} 11. Ne5 {[%emt 0:01:10]} Rc8 {[%emt 0:05:24]} 12. f4 {[%emt 0:03:58]} dxc4 {[%emt 0:11:43]} 13. Ndxc4 {[%emt 0:04:37]} Nd5 {[%emt 0:02:50]} 14. a3 {[%emt 0:07:36]} Bb8 {[%emt 0:03:42]} 15. Qd2 {[%emt 0:05:12]} a6 {[%emt 0:01:48]} 16. Rac1 {[%emt 0:07:00]} Nce7 {[%emt 0:06:44]} 17. Ne3 {[%emt 0:09:02]} Nxe3 {[%emt 0:02:01]} 18. Qxe3 {[%emt 0:00:09]} Nd5 {[%emt 0:01:27]} 19. Qd2 {[%emt 0:02:08]} Rxc1 {[%emt 0:02:43]} 20. Qxc1 {[%emt 0:01:58]} Qd6 {[%emt 0:27:14]} 21. g3 {[%emt 0:08:30]} Ne7 {[%emt 0:03:41]} 22. Nc4 {[%emt 0:05:09]} Qc7 {[%emt 0:01:19]} 23. Qd2 {[%emt 0:03:07]} Rc8 {[%emt 0:02:41]} 24. Rc1 {[%emt 0:04:24]} Qd8 {[%emt 0:02:32]} 25. Ne3 {[%emt 0:03:48]} Ba7 {[%emt 0:02:01]} 26. Rxc8 {[%emt 0:00:52]} Qxc8 {[%emt 0:00:10]} 27. Nxf5 {[%emt 0:00:09]} Nxf5 {[%emt 0:00:10]} 28. Bg4 {[%emt 0:03:09]} Nd6 {[%emt 0:01:46]} 29. Kg2 {[%emt 0:02:23]} Qd8 {[%emt 0:03:34]} 30. Bf3 {[%emt 0:05:23]} Qd7 {[%emt 0:04:31]} 31. Qd3 {[%emt 0:01:18]} Nf5 {[%emt 0:01:04]} 32. Qe4 {[%emt 0:02:11]} Bxd4 {[%emt 0:01:21]} 33. Bxd4 {[%emt 0:00:20]} Nxd4 {[%emt 0:00:52]} 34. Qxb7 {[%emt 0:00:27]} Qd6 {[%emt 0:00:42]} 35. a4 {[%emt 0:02:57]} g6 {[%emt 0:01:31]} 36. Qc8+ {[%emt 0:01:43]} Kg7 {[%emt 0:00:44]} 37. Qc3 {[%emt 0:00:43]} Kf8 {[%emt 0:00:42]} 38. Qc8+ {[%emt 0:00:58]} Ke7 {[%emt 0:00:27]} 39. Qb7+ {[%emt 0:00:16]} Kf6 {[%emt 0:00:27]} 40. Kh3 {[%emt 0:00:00]} Qc5 {[%emt 0:00:00]} 41. Qe4 {[%emt 0:08:55]} Qf5+ {[%emt 0:09:23]} 42. Qxf5+ {[%emt 0:00:38]} Kxf5 {[%emt 0:00:18]} 43. Bb7 {[%emt 0:05:29]} a5 {[%emt 0:00:34]} 44. Ba6 {[%emt 0:00:19]} Nxb3 {[%emt 0:00:54]} 45. Bb5 {[%emt 0:00:12]} Nc5 {[%emt 0:00:47]} 46. Kg2 {[%emt 0:00:58] Ke5} 0-1

[Event "46th GRE-chT Premier 2018"]
[Site "Rio Achaia"]
[Date "2018.07.11"]
[Round "3"]
[White "Paparizou, Eleni"]
[Black "Krasteva, Beloslava"]
[Result "0-1"]
[ECO "B90"]
[WhiteElo "1274"]
[BlackElo "2086"]
[Annotator "NA"]
[PlyCount "86"]
[EventDate "2018.07.10"]
[EventType "team-tourn"]
[EventCountry "GRE"]
[SourceTitle "playchess.com"]
[Source "ChessBase"]
[SourceQuality "1"]
[TimeControl "40/5400+30:1800+30"]

1. e4 {[%emt 0:00:00]} c5 {[%emt 0:00:00]} 2. Nf3 {[%emt 0:00:00]} d6 {[%emt 0:00:34]} 3. d4 {[%emt 0:00:20]} cxd4 {[%emt 0:00:18]} 4. Nxd4 {[%emt 0:01:27]} Nf6 {[%emt 0:00:13]} 5. Nc3 {[%emt 0:00:56]} a6 {[%emt 0:00:10]} 6. Bd3 {[%emt 0:03:32]} e6 {[%emt 0:02:03]} 7. Qe2 {[%emt 0:02:50]} Nbd7 {[%emt 0:03:49]} 8. Nf3 {[%emt 0:06:24]} Qc7 {[%emt 0:08:53]} 9. Bd2 {[%emt 0:06:10]} b5 {[%emt 0:02:57]} 10. O-O {[%emt 0:18:47]} Bb7 {[%emt 0:02:40]} 11. b4 {[%emt 0:05:58]} Be7 {[%emt 0:17:16]} 12. h3 {[%emt 0:01:27]} O-O {[%emt 0:01:21]} 13. Nh2 {[%emt 0:00:21]} d5 {[%emt 0:02:50]} 14. exd5 {[%emt 0:06:02]} Nxd5 {[%emt 0:01:30]} 15. Nxd5 {[%emt 0:03:03]} Bxd5 {[%emt 0:00:10]} 16. Ng4 {[%emt 0:11:00]} Nf6 {[%emt 0:05:53]} 17. Ne3 {[%emt 0:08:02]} Be4 {[%emt 0:04:27]} 18. Rac1 {[%emt 0:03:33]} Rfd8 {[%emt 0:06:46]} 19. f3 {[%emt 0:02:41]} Bxd3 {[%emt 0:01:24]} 20. cxd3 {[%emt 0:00:45]} Qd7 {[%emt 0:00:27]} 21. Rc3 {[%emt 0:01:12]} Bxb4 {[%emt 0:00:55]} 22. Rb3 {[%emt 0:00:25]} Bc5 {[%emt 0:02:25]} 23. Kh1 {[%emt 0:02:53]} Nh5 {[%emt 0:01:25]} 24. Kg1 {[%emt 0:02:15]} Ng3 {[%emt 0:01:38]} 25. Qd1 {[%emt 0:02:17]} Nxf1 {[%emt 0:02:58]} 26. Qxf1 {[%emt 0:00:23]} a5 {[%emt 0:02:44]} 27. Kh1 {[%emt 0:01:05]} a4 {[%emt 0:00:35]} 28. Rc3 {[%emt 0:00:42]} Bd4 {[%emt 0:00:52]} 29. Rc2 {[%emt 0:00:31]} Bxe3 {[%emt 0:02:45]} 30. Bxe3 {[%emt 0:00:35]} Qxd3 {[%emt 0:00:05]} 31. Qf2 {[%emt 0:03:58]} Rac8 {[%emt 0:01:04]} 32. Rd2 {[%emt 0:01:33]} Qxd2 {[%emt 0:01:41]} 33. Bxd2 {[%emt 0:00:37]} Rc2 {[%emt 0:00:05]} 34. Qb6 {[%emt 0:01:29]} Rcxd2 {[%emt 0:00:14]} 35. Qxb5 {[%emt 0:00:59]} Rxa2 {[%emt 0:00:31]} 36. Qa5 {[%emt 0:00:48]} Rd1+ {[%emt 0:07:46]} 37. Kh2 {[%emt 0:00:16]} g6 {[%emt 0:00:36]} 38. Qa8+ {[%emt 0:00:34]} Kg7 {[%emt 0:00:02]} 39. Qb8 {[%emt 0:00:44]} Rd5 {[%emt 0:00:46]} 40. Qb4 {[%emt 0:00:00]} Rdd2 {[%emt 0:00:00]} 41. Qc3+ {[%emt 0:01:14]} Kh6 {[%emt 0:03:08]} 42. Qe3+ {[%emt 0:00:29]} g5 {[%emt 0:00:08]} 43. Qa7 {[%emt 0:05:59]} Rxg2+ {[%emt 0:00:28]} 0-1

[Event "46th GRE-chT Premier 2018"]
[Site "Rio Achaia"]
[Date "2018.07.11"]
[Round "3"]
[White "Matthaiaki, Nefeli"]
[Black "Chatziioannidi, Filippa"]
[Result "0-1"]
[ECO "B90"]
[WhiteElo "1266"]
[BlackElo "1592"]
[Annotator "NA"]
[PlyCount "94"]
[EventDate "2018.07.10"]
[EventType "team-tourn"]
[EventCountry "GRE"]
[SourceTitle "playchess.com"]
[Source "ChessBase"]
[SourceQuality "1"]
[TimeControl "40/5400+30:1800+30"]

1. e4 {[%emt 0:00:00]} c5 {[%emt 0:00:00]} 2. Nf3 {[%emt 0:00:00]} d6 {[%emt 0:00:00]} 3. d4 {[%emt 0:00:17]} cxd4 {[%emt 0:00:00]} 4. Nxd4 {[%emt 0:00:07]} a6 {[%emt 0:00:00]} 5. Nc3 {[%emt 0:00:48]} Nf6 {[%emt 0:00:09]} 6. f3 {[%emt 0:01:23]} e6 {[%emt 0:00:13]} 7. Be3 {[%emt 0:00:34]} Be7 {[%emt 0:00:12]} 8. Qd2 {[%emt 0:00:55]} Qc7 {[%emt 0:00:15]} 9. O-O-O {[%emt 0:03:20]} b5 {[%emt 0:00:18]} 10. a3 {[%emt 0:01:33]} Bb7 {[%emt 0:00:57]} 11. g4 {[%emt 0:08:10]} Nc6 {[%emt 0:04:42]} 12. h4 {[%emt 0:07:09]} Ne5 {[%emt 0:01:55]} 13. Be2 {[%emt 0:06:40]} Rc8 {[%emt 0:01:42]} 14. g5 {[%emt 0:05:53]} Nfd7 {[%emt 0:00:16]} 15. f4 {[%emt 0:01:57]} Nc4 {[%emt 0:00:56]} 16. Bxc4 {[%emt 0:01:22]} Qxc4 {[%emt 0:01:24]} 17. Qd3 {[%emt 0:02:34]} Qc7 {[%emt 0:00:46]} 18. Rhf1 {[%emt 0:04:46]} Nc5 {[%emt 0:00:49]} 19. Qe2 {[%emt 0:05:01]} Nxe4 {[%emt 0:01:30]} 20. Nxe4 {[%emt 0:02:44]} Bxe4 {[%emt 0:00:09]} 21. c3 {[%emt 0:04:49]} d5 {[%emt 0:01:22]} 22. Kd2 {[%emt 0:06:41]} Bxa3 {[%emt 0:00:40]} 23. Ke1 {[%emt 0:01:55]} Bd6 {[%emt 0:01:58]} 24. Qd2 {[%emt 0:02:14]} b4 {[%emt 0:04:09]} 25. Rc1 {[%emt 0:02:29]} O-O {[%emt 0:02:42]} 26. Ne2 {[%emt 0:07:02]} b3 {[%emt 0:02:30]} 27. h5 {[%emt 0:02:05]} Qc4 {[%emt 0:01:14]} 28. Rg1 {[%emt 0:01:26]} Qd3 {[%emt 0:00:56]} 29. Nd4 {[%emt 0:01:45]} Qxd2+ {[%emt 0:00:49]} 30. Kxd2 {[%emt 0:00:27]} Rb8 {[%emt 0:02:49]} 31. c4 {[%emt 0:03:08]} Rfc8 {[%emt 0:10:35]} 32. cxd5 {[%emt 0:01:26]} Rxc1 33. Rxc1 {[%emt 0:00:18]} Bxd5 {[%emt 0:01:33]} 34. Nc6 {[%emt 0:01:38]} Rb7 {[%emt 0:03:06]} 35. Na5 {[%emt 0:03:24]} Rc7 {[%emt 0:03:12]} 36. Ra1 {[%emt 0:03:10]} Rc2+ {[%emt 0:00:50]} 37. Kd3 {[%emt 0:00:38]} Rxb2 {[%emt 0:00:33]} 38. Bd4 {[%emt 0:00:22]} Ra2 {[%emt 0:04:45]} 39. Rxa2 {[%emt 0:02:26]} bxa2 {[%emt 0:00:12]} 40. Nc4 {[%emt 0:00:00]} Bxf4 {[%emt 0:00:00]} 41. Ba1 {[%emt 0:02:10]} Bxg5 {[%emt 0:01:26]} 42. Ne3 {[%emt 0:00:46]} Bf6 {[%emt 0:00:34]} 43. Bxf6 {[%emt 0:00:48]} gxf6 {[%emt 0:00:09]} 44. Nc2 {[%emt 0:00:07]} f5 {[%emt 0:00:19]} 45. Ke3 {[%emt 0:00:30]} Kg7 {[%emt 0:00:19]} 46. Kf4 {[%emt 0:00:35]} Kh6 {[%emt 0:00:14]} 47. Kg3 {[%emt 0:00:21]} Kxh5 {[%emt 0:00:09]} 0-1

[Event "46th GRE-chT Premier 2018"]
[Site "Rio Achaia"]
[Date "2018.07.11"]
[Round "3"]
[White "Violakis, Anastasios"]
[Black "Amaxopoulos, Christos"]
[Result "1-0"]
[ECO "E21"]
[WhiteElo "1255"]
[BlackElo "1180"]
[Annotator "NA"]
[PlyCount "85"]
[EventDate "2018.07.10"]
[EventType "team-tourn"]
[EventCountry "GRE"]
[SourceTitle "playchess.com"]
[Source "ChessBase"]
[SourceQuality "1"]
[TimeControl "40/5400+30:1800+30"]

1. d4 {[%emt 0:00:00]} Nf6 {[%emt 0:00:00]} 2. c4 {[%emt 0:00:00]} e6 {[%emt 0:00:00]} 3. Nc3 {[%emt 0:00:00]} Bb4 {[%emt 0:00:00]} 4. Nf3 {[%emt 0:00:08]} c5 {[%emt 0:00:00]} 5. d5 {[%emt 0:00:35]} O-O {[%emt 0:00:09]} 6. Bg5 {[%emt 0:00:16]} b6 {[%emt 0:02:47]} 7. e3 {[%emt 0:00:26]} Bb7 {[%emt 0:00:32]} 8. e4 {[%emt 0:01:26]} Qc7 {[%emt 0:11:02]} 9. Bd3 {[%emt 0:01:44]} exd5 {[%emt 0:09:17]} 10. cxd5 {[%emt 0:01:10]} d6 {[%emt 0:19:50]} 11. Bxf6 {[%emt 0:00:41]} gxf6 {[%emt 0:00:05]} 12. O-O {[%emt 0:00:05]} Nd7 {[%emt 0:00:08]} 13. Nh4 {[%emt 0:01:53]} Ne5 {[%emt 0:07:32]} 14. Bb1 {[%emt 0:01:30]} Kh8 {[%emt 0:00:59]} 15. f4 {[%emt 0:00:28]} Ng6 {[%emt 0:06:03]} 16. Qh5 {[%emt 0:01:38]} Rg8 {[%emt 0:10:10]} 17. Rf3 {[%emt 0:01:40]} Bxc3 {[%emt 0:04:08]} 18. bxc3 {[%emt 0:00:09]} Qe7 {[%emt 0:04:30]} 19. Nf5 {[%emt 0:00:24]} Qf8 {[%emt 0:01:19]} 20. Rh3 {[%emt 0:00:27]} Rg7 {[%emt 0:01:07]} 21. Nxg7 {[%emt 0:00:29]} Qxg7 {[%emt 0:00:07]} 22. Qf3 {[%emt 0:00:34]} Re8 {[%emt 0:01:56]} 23. Bc2 {[%emt 0:00:47]} Bc8 {[%emt 0:01:37]} 24. f5 {[%emt 0:01:39]} Ne5 {[%emt 0:01:32]} 25. Qh5 {[%emt 0:00:22]} Ba6 {[%emt 0:02:58]} 26. Re1 {[%emt 0:01:42]} Rg8 {[%emt 0:02:27]} 27. Rg3 {[%emt 0:00:36]} Qf8 {[%emt 0:00:09]} 28. Ree3 {[%emt 0:00:48]} Rxg3 {[%emt 0:01:09]} 29. Rxg3 {[%emt 0:00:35]} Bb5 {[%emt 0:03:20]} 30. Qh4 {[%emt 0:00:43]} Qd8 {[%emt 0:01:36]} 31. Qh6 {[%emt 0:00:23]} Ng6 {[%emt 0:02:30]} 32. fxg6 {[%emt 0:00:10]} fxg6 {[%emt 0:00:07]} 33. Rxg6 {[%emt 0:00:15]} Qe7 {[%emt 0:00:21]} 34. Rxf6 {[%emt 0:00:16]} Kg8 {[%emt 0:00:43]} 35. Rxd6 {[%emt 0:00:32]} Be8 {[%emt 0:01:32]} 36. Qe6+ {[%emt 0:00:15]} Qxe6 {[%emt 0:00:09]} 37. Rxe6 {[%emt 0:00:05]} Kf7 {[%emt 0:00:07]} 38. e5 {[%emt 0:00:14]} Bd7 {[%emt 0:00:08]} 39. Rf6+ {[%emt 0:00:12]} Ke7 {[%emt 0:01:03]} 40. d6+ {[%emt 0:00:00]} Ke8 {[%emt 0:00:00]} 41. e6 {[%emt 0:00:21]} Bc6 {[%emt 0:00:31]} 42. Bxh7 {[%emt 0:00:08]} Bd5 {[%emt 0:00:16]} 43. Bg6+ {[%emt 0:00:13]} 1-0

[Event "46th GRE-chT Premier 2018"]
[Site "Rio Achaia"]
[Date "2018.07.11"]
[Round "3"]
[White "Batsi, Varvara"]
[Black "Kaliontzaki, Argyro Evanthia"]
[Result "0-1"]
[ECO "A46"]
[WhiteElo "1241"]
[BlackElo "1346"]
[Annotator "NA"]
[PlyCount "148"]
[EventDate "2018.07.10"]
[EventType "team-tourn"]
[EventCountry "GRE"]
[SourceTitle "playchess.com"]
[Source "ChessBase"]
[SourceQuality "1"]
[TimeControl "40/5400+30:1800+30"]

1. d4 {[%emt 0:00:00]} Nf6 {[%emt 0:00:00]} 2. Nf3 {[%emt 0:00:00]} e6 {[%emt 0:00:00]} 3. Bf4 {[%emt 0:00:00]} c5 {[%emt 0:00:00]} 4. e3 {[%emt 0:00:34]} cxd4 {[%emt 0:00:09]} 5. exd4 {[%emt 0:00:57]} b6 {[%emt 0:00:37]} 6. c3 {[%emt 0:00:57]} Bb7 {[%emt 0:01:01]} 7. h3 {[%emt 0:02:17]} d6 {[%emt 0:02:44]} 8. Be2 {[%emt 0:01:01]} Be7 {[%emt 0:00:45]} 9. O-O {[%emt 0:01:25]} O-O {[%emt 0:01:05]} 10. Re1 {[%emt 0:02:13]} Nbd7 {[%emt 0:01:35]} 11. Nbd2 {[%emt 0:01:25]} Re8 {[%emt 0:02:47]} 12. Qc2 {[%emt 0:09:38]} Qc7 {[%emt 0:02:57]} 13. Bd3 {[%emt 0:03:11]} Bf8 {[%emt 0:06:54]} 14. Ne4 {[%emt 0:06:54]} Nd5 {[%emt 0:08:17]} 15. Bh2 {[%emt 0:01:20]} Rac8 {[%emt 0:01:25]} 16. Qe2 {[%emt 0:02:59]} h6 {[%emt 0:05:27]} 17. a4 {[%emt 0:07:43]} e5 {[%emt 0:05:41]} 18. dxe5 {[%emt 0:07:26]} Nxe5 {[%emt 0:01:23]} 19. Nd4 {[%emt 0:06:11]} Nxd3 {[%emt 0:06:39]} 20. Qxd3 {[%emt 0:00:28]} a6 {[%emt 0:02:45]} 21. Nf5 {[%emt 0:06:42]} Re6 {[%emt 0:06:25]} 22. Nd4 {[%emt 0:10:50]} Ree8 {[%emt 0:02:22]} 23. Rad1 {[%emt 0:01:51]} Qd7 {[%emt 0:09:11]} 24. Ra1 {[%emt 0:10:49]} f5 {[%emt 0:12:17]} 25. Nd2 {[%emt 0:01:15]} Rxe1+ {[%emt 0:01:00]} 26. Rxe1 {[%emt 0:00:05]} Re8 {[%emt 0:04:12]} 27. Rxe8 {[%emt 0:02:43]} Qxe8 {[%emt 0:00:06]} 28. Qxf5 {[%emt 0:02:12]} Qxa4 {[%emt 0:02:23]} 29. Qe6+ {[%emt 0:01:24]} Kh8 {[%emt 0:00:38]} 30. Bxd6 {[%emt 0:00:53]} Bxd6 {[%emt 0:00:38]} 31. Qxd6 {[%emt 0:00:10]} Qa1+ {[%emt 0:03:37]} 32. Nf1 {[%emt 0:00:20]} Qxb2 {[%emt 0:00:55]} 33. Qb8+ {[%emt 0:00:32]} Kh7 {[%emt 0:00:51]} 34. Qxb7 {[%emt 0:00:12]} Nxc3 {[%emt 0:00:33]} 35. Qxa6 {[%emt 0:00:38]} Ne4 {[%emt 0:01:05]} 36. Qd3 {[%emt 0:07:03]} Qxf2+ {[%emt 0:00:24]} 37. Kh1 {[%emt 0:00:49]} Qf4 {[%emt 0:02:10]} 38. Qc2 {[%emt 0:02:21]} Qxf1+ {[%emt 0:00:30]} 39. Kh2 {[%emt 0:00:30]} Qf4+ {[%emt 0:00:28]} 40. Kh1 {[%emt 0:00:00]} g6 {[%emt 0:00:00]} 41. Qa4 {[%emt 0:05:44]} Ng3+ {[%emt 0:02:14]} 42. Kh2 {[%emt 0:00:42]} Ne2+ {[%emt 0:00:34]} 43. Kh1 {[%emt 0:00:16]} Qxd4 {[%emt 0:00:21]} 44. Qa7+ {[%emt 0:00:30]} Kg8 {[%emt 0:01:25]} 45. Qa2+ {[%emt 0:00:49]} Kg7 {[%emt 0:00:37]} 46. Qxe2 {[%emt 0:00:05]} Qc5 {[%emt 0:00:47]} 47. Qd2 {[%emt 0:01:03]} b5 {[%emt 0:02:20]} 48. Qd7+ {[%emt 0:01:23]} Kf6 {[%emt 0:00:51]} 49. Qd8+ {[%emt 0:00:20]} Qe7 {[%emt 0:00:18]} 50. Qd4+ {[%emt 0:00:20]} Qe5 {[%emt 0:08:30]} 51. Qh4+ {[%emt 0:01:56]} Kg7 {[%emt 0:02:42]} 52. Qb4 {[%emt 0:01:33]} g5 {[%emt 0:03:35]} 53. Qa5 {[%emt 0:01:22]} Qc5 {[%emt 0:01:28]} 54. Qa1+ {[%emt 0:01:41]} Kg6 {[%emt 0:00:55]} 55. Qa6+ {[%emt 0:00:53]} Kg7 {[%emt 0:00:40]} 56. Qb7+ {[%emt 0:00:31]} Kf8 {[%emt 0:01:37]} 57. Qa8+ {[%emt 0:03:26]} Ke7 {[%emt 0:03:05]} 58. Qb7+ {[%emt 0:00:37]} Kd6 {[%emt 0:01:42]} 59. Qa6+ {[%emt 0:01:44]} Qc6 {[%emt 0:00:21]} 60. Qa3+ {[%emt 0:00:22]} Qc5 {[%emt 0:03:43]} 61. Qd3+ {[%emt 0:00:37]} Kc6 {[%emt 0:00:59]} 62. Qg6+ {[%emt 0:00:22]} Qd6 {[%emt 0:00:08]} 63. Qe8+ {[%emt 0:01:06]} Kc5 {[%emt 0:00:40]} 64. Qe3+ {[%emt 0:00:36]} Qd4 {[%emt 0:00:37]} 65. Qe7+ {[%emt 0:00:45]} Qd6 {[%emt 0:03:19]} 66. Qe3+ {[%emt 0:01:00]} Kc4 {[%emt 0:00:39]} 67. Qe4+ {[%emt 0:00:22]} Qd4 {[%emt 0:02:20]} 68. Qe6+ {[%emt 0:00:42]} Kc5 {[%emt 0:00:08]} 69. Qxh6 {[%emt 0:00:26]} Qd1+ {[%emt 0:00:10]} 70. Kh2 {[%emt 0:00:17]} Qd6+ {[%emt 0:00:07]} 71. Qxd6+ {[%emt 0:01:14]} Kxd6 {[%emt 0:00:04]} 72. Kg1 {[%emt 0:00:07]} b4 {[%emt 0:00:07]} 73. Kf1 {[%emt 0:00:05]} b3 {[%emt 0:00:03]} 74. Ke1 {[%emt 0:00:11]} b2 {[%emt 0:00:04]} 0-1

[Event "46th GRE-chT Premier 2018"]
[Site "Rio Achaia"]
[Date "2018.07.11"]
[Round "3"]
[White "Stellaki, Alexandra"]
[Black "Papanagiotou, Argyro"]
[Result "1/2-1/2"]
[ECO "D00"]
[WhiteElo "1241"]
[BlackElo "1037"]
[Annotator "NA"]
[PlyCount "64"]
[EventDate "2018.07.10"]
[EventType "team-tourn"]
[EventCountry "GRE"]
[SourceTitle "playchess.com"]
[Source "ChessBase"]
[SourceQuality "1"]
[TimeControl "40/5400+30:1800+30"]

1. d4 {[%emt 0:00:00]} d5 {[%emt 0:00:00]} 2. Bf4 {[%emt 0:00:00]} Nf6 {[%emt 0:00:06]} 3. e3 {[%emt 0:00:00]} Nc6 {[%emt 0:00:16]} 4. Bb5 {[%emt 0:00:11]} Bd7 {[%emt 0:00:23]} 5. Nf3 {[%emt 0:00:36]} e6 {[%emt 0:01:27]} 6. Nbd2 {[%emt 0:00:19]} Be7 {[%emt 0:01:55]} 7. c3 {[%emt 0:00:19]} a6 {[%emt 0:00:54]} 8. Bd3 {[%emt 0:00:28]} O-O {[%emt 0:00:22]} 9. Ne5 {[%emt 0:00:19]} Bd6 {[%emt 0:02:16]} 10. Qc2 {[%emt 0:00:40]} b5 11. Ndf3 {[%emt 0:00:47]} Ne7 {[%emt 0:07:23]} 12. h4 {[%emt 0:03:10]} h6 {[%emt 0:06:38]} 13. g4 {[%emt 0:01:04]} Ne4 {[%emt 0:00:42]} 14. Nxd7 {[%emt 0:01:48]} Qxd7 {[%emt 0:00:27]} 15. Bxd6 {[%emt 0:04:51]} Qxd6 {[%emt 0:01:00]} 16. Bxe4 {[%emt 0:02:29]} dxe4 {[%emt 0:00:14]} 17. Qxe4 {[%emt 0:00:08]} Qd5 {[%emt 0:01:15]} 18. Qxd5 {[%emt 0:00:28]} Nxd5 {[%emt 0:00:37]} 19. Ke2 {[%emt 0:01:02]} Rac8 {[%emt 0:01:50]} 20. Rag1 {[%emt 0:01:24]} Rfd8 {[%emt 0:01:42]} 21. h5 {[%emt 0:00:34]} f6 {[%emt 0:00:34]} 22. e4 {[%emt 0:01:35]} Ne7 {[%emt 0:01:13]} 23. e5 {[%emt 0:00:33]} Kf7 {[%emt 0:01:53]} 24. exf6 {[%emt 0:00:53]} gxf6 {[%emt 0:00:09]} 25. Nd2 {[%emt 0:01:17]} c5 {[%emt 0:00:43]} 26. dxc5 {[%emt 0:00:52]} Rxc5 {[%emt 0:00:10]} 27. Rd1 {[%emt 0:01:15]} Re5+ {[%emt 0:02:05]} 28. Kf3 {[%emt 0:03:20]} Rd3+ {[%emt 0:00:21]} 29. Kg2 {[%emt 0:01:50]} Rg5 {[%emt 0:01:14]} 30. Ne4 {[%emt 0:02:03]} Rxg4+ {[%emt 0:00:57]} 31. Ng3 {[%emt 0:00:13]} Rxd1 {[%emt 0:00:46]} 32. Rxd1 {[%emt 0:00:02]} Rg5 {[%emt 0:02:40]} 1/2-1/2

[Event "46th GRE-chT Premier 2018"]
[Site "Rio Achaia"]
[Date "2018.07.11"]
[Round "3"]
[White "Nikolaidou, Maria"]
[Black "Pasoglou, Ekaterini"]
[Result "0-1"]
[ECO "A46"]
[WhiteElo "1239"]
[BlackElo "1849"]
[Annotator "NA"]
[PlyCount "78"]
[EventDate "2018.07.10"]
[EventType "team-tourn"]
[EventCountry "GRE"]
[SourceTitle "playchess.com"]
[Source "ChessBase"]
[SourceQuality "1"]
[TimeControl "40/5400+30:1800+30"]

1. d4 {[%emt 0:00:42]} Nf6 {[%emt 0:00:00]} 2. Nf3 {[%emt 0:00:20]} e6 {[%emt 0:00:04]} 3. Bf4 {[%emt 0:00:18]} c5 {[%emt 0:00:52]} 4. e3 {[%emt 0:01:11]} d5 {[%emt 0:00:32]} 5. Nbd2 {[%emt 0:01:06]} Nc6 {[%emt 0:00:41]} 6. Bd3 {[%emt 0:01:21]} Bd6 {[%emt 0:02:42]} 7. Bg3 {[%emt 0:00:48]} O-O {[%emt 0:01:13]} 8. c3 {[%emt 0:02:09]} b6 {[%emt 0:01:03]} 9. e4 {[%emt 0:03:29]} Be7 {[%emt 0:02:26]} 10. e5 {[%emt 0:04:43]} Nd7 {[%emt 0:00:46]} 11. Nf1 {[%emt 0:22:32]} f5 {[%emt 0:12:45]} 12. exf6 {[%emt 0:05:17]} Nxf6 {[%emt 0:07:48]} 13. Qe2 {[%emt 0:05:49]} Bd6 {[%emt 0:08:53]} 14. Ne3 {[%emt 0:08:09]} Qc7 {[%emt 0:13:53]} 15. Nc2 {[%emt 0:08:31]} c4 {[%emt 0:07:58]} 16. Bxc4 {[%emt 0:03:09]} dxc4 {[%emt 0:00:14]} 17. Qxc4 {[%emt 0:00:10]} Bd7 {[%emt 0:03:16]} 18. Ne3 {[%emt 0:04:45]} Rac8 {[%emt 0:02:56]} 19. d5 {[%emt 0:03:53]} Na5 {[%emt 0:03:48]} 20. Qd4 {[%emt 0:03:40]} Bxg3 {[%emt 0:06:45]} 21. hxg3 {[%emt 0:00:58]} exd5 {[%emt 0:00:56]} 22. Nxd5 {[%emt 0:01:05]} Rce8+ {[%emt 0:01:13]} 23. Ne3 {[%emt 0:02:53]} Nc4 {[%emt 0:02:13]} 24. O-O-O {[%emt 0:01:53]} Nxe3 {[%emt 0:01:22]} 25. fxe3 {[%emt 0:00:15]} Re4 {[%emt 0:02:17]} 26. Qd3 {[%emt 0:01:55]} Qxg3 {[%emt 0:02:17]} 27. Nd4 {[%emt 0:03:37]} Qxe3+ {[%emt 0:01:03]} 28. Qxe3 {[%emt 0:00:06]} Rxe3 {[%emt 0:00:07]} 29. Nf3 {[%emt 0:00:41]} Bg4 {[%emt 0:03:10]} 30. Rhe1 {[%emt 0:01:32]} Rxe1 {[%emt 0:00:49]} 31. Rxe1 {[%emt 0:00:05]} Bxf3 {[%emt 0:00:13]} 32. gxf3 {[%emt 0:00:04]} Nd5 {[%emt 0:00:10]} 33. Rf1 {[%emt 0:00:33]} Ne3 {[%emt 0:00:13]} 34. Rf2 {[%emt 0:00:12]} Ng4 {[%emt 0:00:16]} 35. Re2 {[%emt 0:01:31]} Rxf3 {[%emt 0:00:21]} 36. Re7 {[%emt 0:00:04]} a5 {[%emt 0:00:50]} 37. Rb7 {[%emt 0:00:16]} Rf6 {[%emt 0:00:13]} 38. Rb8+ {[%emt 0:00:33]} Kf7 {[%emt 0:00:08]} 39. Rd8 {[%emt 0:00:10]} h5 {[%emt 0:00:21]} 0-1